Workbook

Sheet Maisto prekių sąrašas
M1: =skaičiavimai!M9 -> PIENO PRODUKTAI IŠ VISO
B2: Maisto prekių sąrašas
C3: Atlikta | D3: ELEMENTAS | E3: ĮSIGIJIMO VIETA | F3: KATEGORIJA | G3: KIEKIS | H3: VIENETAS | I3: VIENETO KAINA | J3: IŠ VISO | K3: KOMENTARAS | M3: =skaičiavimai!L9 -> 37
C4: 1 | D4: Apelsinai | E4: Maisto prekės | F4: Produktai | G4: 2 | H4: kg | I4: 2.99 EUR | J4: =IFERROR(Sąrašas[KIEKIS]*Sąrašas[VIENETO KAINA],"") -> 5.98 EUR | M4: =skaičiavimai!M8 -> PRODUKTAI IŠ VISO
D5: Obuoliai | E5: Ūkininkų turgus | F5: Produktai | G5: 3 | H5: kg | I5: 1.99 EUR | J5: =IFERROR(Sąrašas[KIEKIS]*Sąrašas[VIENETO KAINA],"") -> 5.97 EUR | K5: Turiu kuponą | M5: =skaičiavimai!L8 -> 45
D6: Bananai | E6: Maisto prekės | F6: Produktai | G6: 1 | H6: ryšelis | I6: 3.99 EUR | J6: =IFERROR(Sąrašas[KIEKIS]*Sąrašas[VIENETO KAINA],"") -> 3.99 EUR
D7: Salotos | E7: Turgus | F7: Produktai | G7: 2 | H7: gūžė | I7: 2.29 EUR | J7: =IFERROR(Sąrašas[KIEKIS]*Sąrašas[VIENETO KAINA],"") -> 4.58 EUR | M7: =skaičiavimai!M7 -> MĖSA IŠ VISO
D8: Pomidorai | E8: Turgus | F8: Produktai | G8: 4 | H8: kg | I8: 3.49 EUR | J8: =IFERROR(Sąrašas[KIEKIS]*Sąrašas[VIENETO KAINA],"") -> 13.96 EUR | M8: =skaičiavimai!L7 -> 80
D9: Moliūgas | E9: Turgus | F9: Produktai | G9: 2 | H9: kiekvienas | I9: 1.50 EUR | J9: =IFERROR(Sąrašas[KIEKIS]*Sąrašas[VIENETO KAINA],"") -> 3.00 EUR
D10: Salierai | E10: Maisto prekės | F10: Produktai | G10: 2 | H10: ryšelis | I10: 1.99 EUR | J10: =IFERROR(Sąrašas[KIEKIS]*Sąrašas[VIENETO KAINA],"") -> 3.98 EUR | M10: =skaičiavimai!M6 -> JŪROS GĖRYBĖS IŠ VISO
D11: Agurkai | E11: Turgus | F11: Produktai | G11: 1 | H11: kg | I11: 2.29 EUR | J11: =IFERROR(Sąrašas[KIEKIS]*Sąrašas[VIENETO KAINA],"") -> 2.29 EUR | M11: =skaičiavimai!L6 -> 109
D12: Grybai | E12: Maisto prekės | F12: Produktai | G12: 0.5 | H12: kg | I12: 2.25 EUR | J12: =IFERROR(Sąrašas[KIEKIS]*Sąrašas[VIENETO KAINA],"") -> 1.13 EUR | K12: Dideli baravykai
D13: Pienas | E13: Pristatymas į namus | F13: Pieno produktai | G13: 2 | H13: l | I13: 3.99 EUR | J13: =IFERROR(Sąrašas[KIEKIS]*Sąrašas[VIENETO KAINA],"") -> 7.98 EUR | M13: =skaičiavimai!M3 -> KITŲ PIRKINIŲ SUMA
D14: Sūris | E14: Pristatymas į namus | F14: Pieno produktai | G14: 1 | H14: kg | I14: 9.99 EUR | J14: =IFERROR(Sąrašas[KIEKIS]*Sąrašas[VIENETO KAINA],"") -> 9.99 EUR | K14: Kietieji sūriai | M14: =skaičiavimai!L3 -> 0
D15: Kiaušiniai | E15: Pristatymas į namus | F15: Pieno produktai | G15: 2 | H15: tuz. | I15: 3.50 EUR | J15: =IFERROR(Sąrašas[KIEKIS]*Sąrašas[VIENETO KAINA],"") -> 7.00 EUR
D16: Varškės sūris | E16: Pristatymas į namus | F16: Pieno produktai | G16: 1 | H16: 0,5 kg | I16: 3.89 EUR | J16: =IFERROR(Sąrašas[KIEKIS]*Sąrašas[VIENETO KAINA],"") -> 3.89 EUR | M16: =skaičiavimai!M4 -> MAISTO PREKIŲ SUMA
D17: Grietinė | E17: Pristatymas į namus | F17: Pieno produktai | G17: 1 | H17: 0,25 kg | I17: 2.99 EUR | J17: =IFERROR(Sąrašas[KIEKIS]*Sąrašas[VIENETO KAINA],"") -> 2.99 EUR | M17: =MaistoPrekiųSuma -> 271
D18: Jogurtas | E18: Maisto prekės | F18: Pieno produktai | G18: 1 | H18: 0,5 kg | I18: 4.99 EUR | J18: =IFERROR(Sąrašas[KIEKIS]*Sąrašas[VIENETO KAINA],"") -> 4.99 EUR | K18: Graikiškas su medumi
D19: Jautiena | E19: Turgus | F19: Mėsa | G19: 10 | H19: kg | I19: 7.99 EUR | J19: =IFERROR(Sąrašas[KIEKIS]*Sąrašas[VIENETO KAINA],"") -> 79.90 EUR | K19: Šonine apvyniota filė
D20: Laukinė lašiša | E20: Žuvų turgus | F20: Jūros gėrybės | G20: 6 | H20: kg | I20: 8.99 EUR | J20: =IFERROR(Sąrašas[KIEKIS]*Sąrašas[VIENETO KAINA],"") -> 53.94 EUR
D21: Aliaskos karališkieji krabai | E21: Žuvų turgus | F21: Jūros gėrybės | G21: 5 | H21: kg | I21: 10.99 EUR | J21: =IFERROR(Sąrašas[KIEKIS]*Sąrašas[VIENETO KAINA],"") -> 54.95 EUR

Sheet skaičiavimai (hidden)
A1: *** Darbalapis turi likti paslėptas ***
K3: =SUM(Sąrašas[IŠ VISO])-SUM(K6:K9) -> 0.00 EUR | L3: =ROUND(K3,0) -> 0 EUR | M3: KITŲ PIRKINIŲ SUMA
L4: =ROUNDUP(SUM(Sąrašas[IŠ VISO]),0) -> 271 EUR | M4: MAISTO PREKIŲ SUMA
E6: =IFERROR(INDEX(Sąrašas[KATEGORIJA],MATCH(,COUNTIF($E$5:E5,Sąrašas[KATEGORIJA]),)),"") -> Produktai | F6: =SUMIFS(Sąrašas[IŠ VISO],Sąrašas[KATEGORIJA],E6) -> 44.875 | G6: =F6+ROW()/1000000 -> 44.875006 | H6: =LARGE($G$6:$G$21,1) -> 108.890009 | I6: =MATCH(H6,$G$6:$G$21,0) -> 4 | J6: =INDEX($E$6:$E$21,$I6) -> Jūros gėrybės | K6: =INDEX($F$6:$F$21,$I6) -> 108.89 EUR | L6: =ROUND(K6,0) -> 109 EUR | M6: =UPPER(J6) & " IŠ VISO" -> JŪROS GĖRYBĖS IŠ VISO
E7: =IFERROR(INDEX(Sąrašas[KATEGORIJA],MATCH(,COUNTIF($E$5:E6,Sąrašas[KATEGORIJA]),)),"") -> Pieno produktai | F7: =SUMIFS(Sąrašas[IŠ VISO],Sąrašas[KATEGORIJA],E7) -> 36.84 | G7: =F7+ROW()/1000000 -> 36.840007 | H7: =LARGE($G$6:$G$21,2) -> 79.900008 | I7: =MATCH(H7,$G$6:$G$21,0) -> 3 | J7: =INDEX($E$6:$E$21,$I7) -> Mėsa | K7: =INDEX($F$6:$F$21,$I7) -> 79.90 EUR | L7: =ROUND(K7,0) -> 80 EUR | M7: =UPPER(J7) & " IŠ VISO" -> MĖSA IŠ VISO
E8: =IFERROR(INDEX(Sąrašas[KATEGORIJA],MATCH(,COUNTIF($E$5:E7,Sąrašas[KATEGORIJA]),)),"") -> Mėsa | F8: =SUMIFS(Sąrašas[IŠ VISO],Sąrašas[KATEGORIJA],E8) -> 79.9 | G8: 79.900008 | H8: =LARGE($G$6:$G$21,3) -> 44.875006 | I8: =MATCH(H8,$G$6:$G$21,0) -> 1 | J8: =INDEX($E$6:$E$21,$I8) -> Produktai | K8: =INDEX($F$6:$F$21,$I8) -> 44.88 EUR | L8: =ROUND(K8,0) -> 45 EUR | M8: =UPPER(J8) & " IŠ VISO" -> PRODUKTAI IŠ VISO
E9: =IFERROR(INDEX(Sąrašas[KATEGORIJA],MATCH(,COUNTIF($E$5:E8,Sąrašas[KATEGORIJA]),)),"") -> Jūros gėrybės | F9: =SUMIFS(Sąrašas[IŠ VISO],Sąrašas[KATEGORIJA],E9) -> 108.89 | G9: 108.890009 | H9: =LARGE($G$6:$G$21,4) -> 36.840007 | I9: =MATCH(H9,$G$6:$G$21,0) -> 2 | J9: =INDEX($E$6:$E$21,$I9) -> Pieno produktai | K9: =INDEX($F$6:$F$21,$I9) -> 36.84 EUR | L9: =ROUND(K9,0) -> 37 EUR | M9: =UPPER(J9) & " IŠ VISO" -> PIENO PRODUKTAI IŠ VISO
E10: =IFERROR(INDEX(Sąrašas[KATEGORIJA],MATCH(,COUNTIF($E$5:E9,Sąrašas[KATEGORIJA]),)),"") ->  | F10: =SUMIFS(Sąrašas[IŠ VISO],Sąrašas[KATEGORIJA],E10) -> 0 | G10: 1e-05
E11: =IFERROR(INDEX(Sąrašas[KATEGORIJA],MATCH(,COUNTIF($E$5:E10,Sąrašas[KATEGORIJA]),)),"") ->  | F11: =SUMIFS(Sąrašas[IŠ VISO],Sąrašas[KATEGORIJA],E11) -> 0 | G11: 1.1e-05
E12: =IFERROR(INDEX(Sąrašas[KATEGORIJA],MATCH(,COUNTIF($E$5:E11,Sąrašas[KATEGORIJA]),)),"") ->  | F12: =SUMIFS(Sąrašas[IŠ VISO],Sąrašas[KATEGORIJA],E12) -> 0 | G12: 1.2e-05
E13: =IFERROR(INDEX(Sąrašas[KATEGORIJA],MATCH(,COUNTIF($E$5:E12,Sąrašas[KATEGORIJA]),)),"") ->  | F13: =SUMIFS(Sąrašas[IŠ VISO],Sąrašas[KATEGORIJA],E13) -> 0 | G13: 1.3e-05
E14: =IFERROR(INDEX(Sąrašas[KATEGORIJA],MATCH(,COUNTIF($E$5:E13,Sąrašas[KATEGORIJA]),)),"") ->  | F14: =SUMIFS(Sąrašas[IŠ VISO],Sąrašas[KATEGORIJA],E14) -> 0 | G14: 1.4e-05
E15: =IFERROR(INDEX(Sąrašas[KATEGORIJA],MATCH(,COUNTIF($E$5:E14,Sąrašas[KATEGORIJA]),)),"") ->  | F15: =SUMIFS(Sąrašas[IŠ VISO],Sąrašas[KATEGORIJA],E15) -> 0 | G15: 1.5e-05
E16: =IFERROR(INDEX(Sąrašas[KATEGORIJA],MATCH(,COUNTIF($E$5:E15,Sąrašas[KATEGORIJA]),)),"") ->  | F16: =SUMIFS(Sąrašas[IŠ VISO],Sąrašas[KATEGORIJA],E16) -> 0 | G16: 1.6e-05
E17: =IFERROR(INDEX(Sąrašas[KATEGORIJA],MATCH(,COUNTIF($E$5:E16,Sąrašas[KATEGORIJA]),)),"") ->  | F17: =SUMIFS(Sąrašas[IŠ VISO],Sąrašas[KATEGORIJA],E17) -> 0 | G17: 1.7e-05
E18: =IFERROR(INDEX(Sąrašas[KATEGORIJA],MATCH(,COUNTIF($E$5:E17,Sąrašas[KATEGORIJA]),)),"") ->  | F18: =SUMIFS(Sąrašas[IŠ VISO],Sąrašas[KATEGORIJA],E18) -> 0 | G18: 1.8e-05
E19: =IFERROR(INDEX(Sąrašas[KATEGORIJA],MATCH(,COUNTIF($E$5:E18,Sąrašas[KATEGORIJA]),)),"") ->  | F19: =SUMIFS(Sąrašas[IŠ VISO],Sąrašas[KATEGORIJA],E19) -> 0 | G19: 1.9e-05
E20: =IFERROR(INDEX(Sąrašas[KATEGORIJA],MATCH(,COUNTIF($E$5:E19,Sąrašas[KATEGORIJA]),)),"") ->  | F20: =SUMIFS(Sąrašas[IŠ VISO],Sąrašas[KATEGORIJA],E20) -> 0 | G20: 2e-05
E21: =IFERROR(INDEX(Sąrašas[KATEGORIJA],MATCH(,COUNTIF($E$5:E20,Sąrašas[KATEGORIJA]),)),"") ->  | F21: =SUMIFS(Sąrašas[IŠ VISO],Sąrašas[KATEGORIJA],E21) -> 0 | G21: 2.1e-05
